bitfinex/quotes_SOLUSD_20260105
["timestamp","ask_amount","ask_price","bid_price","bid_amount"]
[1767626791144,0.2,134.67,134.64,10.50048934]
[1767626792442,0.2,134.67,134.64,17.92767999]
[1767626792952,0.2,134.67,134.64,8.14526072]
[1767626793244,0.2,134.67,134.64,17.92767999]
[1767626794629,0.1,134.7,134.65,10.47709749]
[1767626794828,0.78356704,134.7,134.65,10.47709749]
[1767626795462,0.1,134.7,134.66,0.69467822]
[1767626795631,0.1,134.7,134.67,10.47709749]
[1767626796043,0.1,134.7,134.67,0.69467822]
[1767626796255,10.46598631,134.68,134.64,7.42719065]
[1767626796465,0.68356704,134.68,134.64,7.42719065]
[1767626796767,0.68356704,134.68,134.64,17.20960992]
[1767626796927,0.68356704,134.68,134.64,7.42719065]
[1767626797128,8.20760181,134.7,134.64,17.90428814]
[1767626797441,8.20760181,134.7,134.65,0.69467822]
[1767626797442,0.68356704,134.69,134.65,0.69467822]
[1767626797649,0.68356704,134.69,134.65,10.47709749]
[1767626797835,0.68356704,134.69,134.65,0.69467822]
[1767626798030,0.68356704,134.69,134.65,10.47709749]
[1767626798644,0.1,134.7,134.66,17.20852947]
[1767626798954,0.1,134.7,134.66,17.90320769]
[1767626799255,0.1,134.7,134.66,36.46848319]
[1767626800156,0.68356704,134.69,134.65,20.96646313]
[1767626800369,0.68356704,134.69,134.65,30.7488824]
[1767626800733,0.68356704,134.69,134.67,9.78241927]
[1767626800933,0.1,134.7,134.68,9.78241927]
[1767626801831,0.1,134.7,134.67,0.69467822]
[1767626802265,0.1,134.7,134.67,10.47709749]
[1767626802739,0.68356704,134.68,134.62,0.69467822]
[1767626802942,6.13992017,134.67,134.63,17.20983443]
[1767626803146,0.68356704,134.67,134.63,17.20983443]
[1767626803772,0.68356704,134.66,134.62,7.42816587]
[1767626804087,0.68356704,134.64,134.6,9.78241927]
[1767626804242,0.68356704,134.63,134.59,30.75209572]
[1767626804436,0.68356704,134.63,134.6,7.42932899]
[1767626804635,0.68356704,134.63,134.6,17.21174826]
[1767626805479,0.68356704,134.63,134.61,9.78241927]
[1767626805681,0.68356704,134.63,134.6,35.78529952]
[1767626806362,0.68356704,134.63,134.6,7.42932899]
[1767626806563,0.68356704,134.63,134.6,9.78241927]
[1767626806780,0.68356704,134.63,134.6,7.42936301]
[1767626806959,0.68356704,134.63,134.6,17.21178228]
[1767626807282,18.5647175,134.67,134.61,9.78241927]
[1767626807283,0.68356704,134.64,134.61,9.78241927]
[1767626807584,0.68356704,134.64,134.6,7.42936301]
[1767626807780,0.68356704,134.64,134.61,9.78241927]
[1767626808158,5.49430943,134.63,134.61,9.78241927]
[1767626808360,0.68356704,134.65,134.61,9.78241927]
[1767626808560,5.49430833,134.64,134.61,17.21126094]
[1767626808760,0.68356704,134.67,134.62,9.78241927]
[1767626808974,5.49424121,134.66,134.62,9.78241927]
[1767626809171,5.49424121,134.65,134.62,9.78241927]
[1767626809374,0.68356704,134.67,134.63,9.78241927]
[1767626809579,5.49788419,134.66,134.63,9.78241927]
[1767626809784,0.68356704,134.67,134.63,9.78241927]
[1767626809962,0.88356704,134.71,134.66,10.47709749]
[1767626810168,0.88356704,134.71,134.67,9.78241927]
[1767626811385,0.88356704,134.71,134.68,9.78241927]
[1767626814572,0.88356704,134.71,134.67,17.20784857]
[1767626815784,8.30716266,134.71,134.66,8.12078305]
[1767626816086,8.30716266,134.71,134.67,9.78241927]
[1767626816280,0.88356704,134.71,134.67,9.78241927]
[1767626817182,0.76972219,134.7,134.66,17.2085241]
[1767626817376,0.76972219,134.7,134.66,9.78241927]
[1767626817684,0.76972219,134.7,134.63,14.22936035]
[1767626817685,0.66972219,134.67,134.63,0.68936035]
[1767626818591,0.66972219,134.67,134.63,8.11699565]
[1767626818777,0.66972219,134.67,134.63,17.89941492]
[1767626819466,0.31172502,134.67,134.63,17.89941492]
[1767626820491,0.1,134.7,134.65,0.71651062]
[1767626820673,0.1,134.7,134.67,9.78241927]
[1767626820878,9.88241927,134.7,134.65,10.47308759]
[1767626821288,0.1,134.7,134.66,9.78241927]
[1767626821576,8.18560996,134.7,134.66,9.78241927]
[1767626822001,0.66166204,134.69,134.65,8.11727299]
[1767626822209,0.66166204,134.69,134.65,17.89969226]
[1767626822369,0.66166204,134.68,134.64,17.20940496]
[1767626822699,9.78241927,134.65,134.61,8.119126]
[1767626823384,10.44408131,134.65,134.6,9.78241927]
[1767626823573,10.44408131,134.65,134.59,18.57424992]
[1767626823574,10.44408131,134.64,134.59,10.47308759]
[1767626823898,0.66166204,134.63,134.59,17.21212468]
[1767626826288,9.78241927,134.64,134.59,17.902793]
[1767626826289,10.44408131,134.64,134.59,17.902793]
[1767626826490,6.67036824,134.64,134.59,14.12907993]
[1767626826688,6.67036824,134.66,134.61,6.69937452]
[1767626827204,32.10186454,134.69,134.64,6.0087062]
[1767626827205,0.66166204,134.68,134.64,6.0087062]
[1767626827785,6.67036824,134.67,134.6,0.69066832]
[1767626827989,0.66166204,134.65,134.61,6.0087062]
[1767626828212,8.08627788,134.69,134.64,6.0087062]
[1767626828388,6.0087062,134.69,134.64,6.69937452]
[1767626828606,6.0087062,134.69,134.65,7.42666171]
[1767626829000,6.67036824,134.69,134.65,7.42666171]
[1767626829197,0.66166204,134.69,134.65,13.43536791]
[1767626829391,0.66166204,134.69,134.65,7.42666171]
[1767626829604,0.66166204,134.68,134.63,25.99710735]
[1767626829784,0.66166204,134.68,134.64,6.0087062]
[1767626831708,0.66166204,134.68,134.65,7.42666171]
[1767626832497,0.66166204,134.68,134.65,13.43536791]
[1767626832698,0.66166204,134.68,134.66,6.0087062]
[1767626833713,0.1,134.7,134.67,0.69066832]
[1767626835483,0.1,134.7,134.66,13.43437039]
[1767626835901,6.77036824,134.7,134.65,13.43511013]
[1767626836102,6.67036824,134.69,134.65,0.69066832]
[1767626836587,0.66166204,134.69,134.65,14.12593065]
[1767626836983,0.1,134.7,134.65,14.12593065]
[1767626837185,0.66166204,134.69,134.65,7.42655613]
[1767626837391,0.66166204,134.69,134.65,13.43526233]
[1767626837606,6.67036824,134.69,134.65,7.42655613]
[1767626837813,0.66166204,134.69,134.65,13.43526233]
[1767626838103,0.66166204,134.69,134.65,14.12593065]
[1767626838710,6.67036824,134.69,134.64,8.1175599]
[1767626839005,7.52402023,134.7,134.63,7.4277094]
[1767626839006,6.67036824,134.67,134.63,7.4277094]
[1767626839698,8.18568227,134.7,134.65,6.69937452]
[1767626839878,0.71776052,134.7,134.66,6.0087062]
[1767626840086,0.1,134.7,134.66,14.1251565]
[1767626840517,0.76166204,134.7,134.66,13.43448818]
[1767626840691,0.66166204,134.69,134.65,7.42653548]
[1767626841221,0.66166204,134.68,134.65,7.42653548]
[1767626841905,0.66166204,134.67,134.64,7.42691457]
[1767626842489,13.43326993,134.69,134.65,0.69066832]
[1767626842689,6.67036824,134.68,134.63,8.11823164]
[1767626842888,6.67036824,134.68,134.63,14.12693784]
[1767626843410,6.67036824,134.67,134.63,0.69066832]
[1767626844191,6.67036824,134.67,134.63,8.11831466]
[1767626845115,0.66166204,134.67,134.63,8.11831466]
[1767626845316,8.08724454,134.67,134.63,8.11831466]
[1767626845494,14.09595074,134.67,134.63,8.11838389]
[1767626846120,6.67036824,134.67,134.63,8.11838389]
[1767626846296,0.66166204,134.67,134.63,14.12709009]
[1767626848116,0.66166204,134.69,134.64,14.126535]
[1767626848294,6.67036824,134.69,134.64,14.126535]
[1767626848494,14.09488879,134.69,134.64,8.1178288]
[1767626849194,7.52410049,134.7,134.66,0.69066832]
[1767626849714,14.19446873,134.7,134.66,0.69066832]
[1767626849913,6.67036824,134.69,134.65,0.69066832]
[1767626850090,6.67036824,134.69,134.64,8.1178288]
[1767626850091,6.0087062,134.68,134.64,8.1178288]
[1767626850291,6.67036824,134.68,134.64,8.1178288]
[1767626850914,0.65948278,134.67,134.62,8.10925822]
[1767626851224,6.0087062,134.66,134.62,8.10925822]
[1767626852113,0.65948278,134.68,134.63,14.11730844]
[1767626852320,6.66818898,134.68,134.63,14.11730844]
[1767626852499,0.65948278,134.67,134.63,10.5544906]
[1767626852699,3.10537114,134.67,134.63,8.10860224]
[1767626852902,0.65948278,134.67,134.63,8.10860224]
[1767626853116,3.10537114,134.67,134.63,8.10860224]
[1767626854617,0.65948278,134.69,134.64,0.68123542]
[1767626854810,3.10537114,134.69,134.64,0.68123542]
[1767626855120,0.65948278,134.68,134.64,0.68123542]
[1767626855719,0.65948278,134.68,134.65,7.42666171]
[1767626855917,3.10537114,134.68,134.64,8.10818702]
[1767626856221,10.53038899,134.68,134.64,8.10818702]
[1767626856821,3.10537114,134.68,134.64,8.10818702]
[1767626857829,10.5303853,134.68,134.64,8.10818702]
[1767626858038,10.5303853,134.68,134.64,0.68123542]
[1767626858324,3.10537114,134.66,134.61,0.68123542]
[1767626858517,0.65948278,134.65,134.61,8.1096286]
[1767626858714,3.10537114,134.65,134.61,8.1096286]
[1767626860025,10.53203593,134.65,134.61,8.1096286]
[1767626860621,3.10537114,134.62,134.57,19.25835037]
[1767626860824,2.44588836,134.61,134.59,8.11086696]
[1767626861026,2.44588836,134.62,134.59,8.11086696]
[1767626861924,2.44588836,134.62,134.6,7.42939218]
[1767626862420,2.44588836,134.61,134.6,7.42939218]
[1767626862627,2.44588836,134.61,134.59,8.11096878]
[1767626862824,0.65948278,134.63,134.57,14.22123542]
[1767626862825,2.44588836,134.6,134.57,14.22123542]
[1767626863025,2.44588836,134.59,134.57,8.11199685]
[1767626863322,2.44588836,134.6,134.57,8.11199685]
[1767626863525,0.65948278,134.61,134.57,8.11199685]
[1767626863827,2.44588836,134.6,134.58,7.43035009]
[1767626864326,2.44588836,134.6,134.57,0.68123542]
[1767626864711,8.08709201,134.64,134.58,0.68123542]
[1767626864909,8.08657294,134.65,134.58,0.68123542]
[1767626865113,0.65948278,134.65,134.59,0.68123542]
[1767626865324,2.44588836,134.64,134.59,0.68123542]
[1767626866402,2.44588836,134.64,134.6,8.11065592]
[1767626868523,0.65948278,134.65,134.6,8.11065592]
[1767626868827,2.44588836,134.64,134.6,8.11065592]
[1767626869024,0.65948278,134.63,134.6,7.4294205]
[1767626869331,2.44588836,134.64,134.61,0.68123542]
[1767626870419,0.65948278,134.61,134.57,8.11186286]
[1767626870729,2.44588836,134.6,134.57,7.43062744]
[1767626870928,2.44588836,134.59,134.57,7.43062744]
[1767626871128,21.01452158,134.64,134.53,19.26354943]
[1767626871129,3.10537114,134.58,134.53,19.26354943]
[1767626871313,0.65948278,134.6,134.55,7.43185103]
[1767626871518,2.44588836,134.58,134.55,7.43185103]
[1767626871717,2.44588836,134.57,134.55,7.43185103]
[1767626872630,2.44588836,134.58,134.55,7.43185103]
[1767626873310,21.68389587,134.61,134.56,0.67760101]
[1767626873504,2.44588836,134.58,134.55,7.43185103]
[1767626873730,3.16070413,134.57,134.54,7.43252823]
[1767626873925,0.71481577,134.62,134.55,13.54]
[1767626874223,3.16070413,134.62,134.56,2.44588836]
[1767626874623,3.16070413,134.62,134.57,7.43107676]
[1767626874931,0.71481577,134.62,134.57,9.87696512]
[1767626875426,0.71481577,134.62,134.57,28.45465702]
[1767626876248,0.71481577,134.64,134.59,2.44588836]
[1767626876740,0.71481577,134.64,134.6,7.4294205]
[1767626876928,0.71481577,134.64,134.6,9.87530886]
[1767626877930,0.71481577,134.64,134.61,2.44588836]
[1767626878120,0.71481577,134.64,134.59,26.0043767]
[1767626878443,0.71481577,134.65,134.61,2.44588836]
[1767626878644,8.14073717,134.67,134.59,26.0043767]
[1767626878935,0.71481577,134.64,134.6,2.44588836]
[1767626879610,0.71481577,134.66,134.62,2.44588836]
[1767626880234,0.71481577,134.66,134.62,9.87399941]
[1767626882129,0.70161321,134.65,134.62,9.87399941]
[1767626882315,0.70161321,134.65,134.61,9.87448839]
[1767626882526,0.70161321,134.64,134.6,9.87505634]
[1767626882912,2.44588836,134.66,134.61,2.44588836]
[1767626883112,2.44588836,134.66,134.62,2.44588836]
[1767626883113,13.54,134.66,134.62,2.44588836]
[1767626883838,13.54,134.66,134.62,9.8741411]
[1767626884157,20.96612857,134.66,134.62,2.44588836]
[1767626885028,0.70161321,134.65,134.62,9.87417425]
[1767626885231,20.96612857,134.66,134.62,9.87417425]
[1767626885232,7.42612857,134.66,134.62,9.87417425]
[1767626885436,0.2,134.71,134.66,0.69025211]
[1767626885611,0.2,134.71,134.62,7.42828589]
[1767626885612,0.2,134.71,134.67,2.44588836]
[1767626885812,2.44588836,134.68,134.63,2.44588836]
[1767626886234,2.44588836,134.67,134.62,10.56442636]
[1767626886614,3.82249214,134.67,134.62,11.94103014]
[1767626886837,11.24815996,134.67,134.62,8.118538]
[1767626887036,11.24815996,134.67,134.62,11.94103014]
[1767626887251,0.70161321,134.66,134.61,0.69025211]
[1767626887535,0.64167362,134.66,134.62,3.82249214]
[1767626887757,11.24815996,134.67,134.61,0.69025211]
[1767626887758,3.82249214,134.65,134.61,7.4286523]
[1767626888446,3.82249214,134.66,134.61,11.25114444]
[1767626889031,11.24880118,134.66,134.61,3.82249214]
[1767626889420,0.70161321,134.65,134.61,3.82249214]
[1767626890031,4.52410535,134.65,134.6,11.25154763]
[1767626890228,0.70161321,134.64,134.61,7.4288067]
[1767626892138,0.70161321,134.66,134.63,3.82249214]
[1767626892340,0.70161321,134.68,134.62,0.69025211]
[1767626892541,0.70161321,134.68,134.64,3.82249214]
[1767626893157,0.70161321,134.68,134.62,0.69025211]
[1767626893158,0.70161321,134.68,134.63,3.82249214]
[1767626893360,0.70161321,134.68,134.63,4.51274425]
[1767626893843,0.70161321,134.68,134.64,7.4272133]
[1767626894633,0.70161321,134.68,134.64,11.24970544]
[1767626895548,8.12667665,134.68,134.64,7.4272133]
[1767626895761,0.70161321,134.67,134.63,7.42749164]
[1767626896049,0.70161321,134.67,134.63,11.24998378]
[1767626896439,0.70161321,134.67,134.63,11.94023589]
[1767626897252,0.70161321,134.67,134.64,3.82249214]
[1767626898062,0.70161321,134.67,134.64,7.42703371]
[1767626898722,0.70161321,134.67,134.63,11.94027488]
[1767626899246,0.70161321,134.67,134.64,7.42715205]
[1767626900254,0.70161321,134.67,134.64,11.24964419]
[1767626901053,0.70161321,134.67,134.64,7.42715205]
[1767626902349,0.70161321,134.67,134.63,11.9403138]
[1767626902948,0.70161321,134.67,134.63,11.25006169]
[1767626903343,0.70161321,134.67,134.63,7.42756955]
[1767626903748,0.70161321,134.67,134.63,11.25006169]
[1767626904130,0.70161321,134.67,134.63,11.9403138]
[1767626904453,0.70161321,134.68,134.64,11.93972215]
[1767626904935,12.04829193,134.7,134.65,4.51274425]
[1767626905137,8.22579979,134.7,134.66,3.82249214]
[1767626905336,8.22579979,134.7,134.65,4.51274425]
[1767626905958,0.80161321,134.7,134.66,3.82249214]
[1767626906855,0.1,134.7,134.68,0.69025211]
[1767626907150,0.1,134.7,134.68,4.51274425]
[1767626907343,0.2,134.71,134.69,4.51274425]
[1767626907549,0.90161321,134.71,134.7,3.82249214]
[1767626907742,0.90161321,134.71,134.7,3.09749214]
[1767626907938,1e-08,134.71,134.7,2.37249214]
[1767626908351,1e-08,134.71,134.7,7.42390497]
[1767626908955,1e-08,134.71,134.69,11.24668584]
[1767626909151,1e-08,134.71,134.7,8.11415708]
[1767626909355,1e-08,134.71,134.7,8.08415709]
[1767626910239,1e-08,134.71,134.7,11.90664923]
[1767626910635,11.2898811,134.77,134.71,0.69025211]
[1767626910838,15.21137324,134.77,134.72,3.82249214]
[1767626911047,11.341841,134.77,134.72,3.82249214]
[1767626911654,11.341841,134.77,134.71,3.82249214]
[1767626911857,3.82249214,134.76,134.71,11.24535566]
[1767626912354,4.47534481,134.76,134.71,7.42286352]
[1767626912763,4.47534481,134.76,134.71,8.14190774]
[1767626913144,3.82249214,134.75,134.71,8.14190774]
[1767626914180,8.07385797,134.76,134.71,8.14190774]
[1767626914356,3.82249214,134.75,134.71,8.14190774]
[1767626914658,11.89635011,134.76,134.71,11.96439988]
[1767626914862,3.82249214,134.75,134.71,8.14190774]
[1767626915065,0.75844715,134.78,134.73,0.71904422]
[1767626915262,4.58093929,134.78,134.73,0.71904422]
[1767626915769,0.1,134.8,134.77,0.71904422]
[1767626915981,3.82249214,134.79,134.74,0.71904422]
[1767626916268,3.82249214,134.78,134.74,8.14064587]
[1767626916642,11.89093304,134.79,134.74,11.96313801]
[1767626917856,3.82249214,134.77,134.73,8.14107044]
[1767626918240,0.20702614,134.78,134.74,7.42167833]
[1767626918470,4.02951828,134.78,134.74,8.14072255]
[1767626918773,0.64490679,134.77,134.74,11.24417047]
[1767626919138,0.64490679,134.77,134.73,11.24465363]
[1767626920362,0.64490679,134.77,134.73,7.42216149]
[1767626920537,0.64490679,134.77,134.73,11.24465363]
[1767626920857,11.24160321,134.79,134.73,11.96369785]
[1767626921051,0.1,134.8,134.77,4.54153636]
[1767626921258,0.1,134.8,134.77,3.82249214]
[1767626921460,0.1,134.8,134.77,4.54153636]
[1767626921862,0.1,134.8,134.77,0.71904422]
[1767626922163,0.1,134.8,134.77,8.13901872]
[1767626923067,0.1,134.8,134.77,0.71904422]
[1767626923740,0.28075838,134.8,134.76,11.24288506]
[1767626923943,0.28075838,134.8,134.77,7.42004503]
[1767626924344,0.28075838,134.8,134.77,11.24253717]
[1767626924967,0.1,134.8,134.77,11.96158139]
[1767626925481,0.1,134.8,134.77,8.13908925]
[1767626925768,0.1,134.8,134.77,0.71904422]
[1767626927060,0.1,134.8,134.76,0.71904422]
[1767626927263,3.82249214,134.79,134.76,0.71904422]
[1767626928157,3.82249214,134.77,134.74,0.71904422]
[1767626928372,3.82249214,134.77,134.73,0.71904422]
[1767626929270,3.82249214,134.77,134.72,8.14175939]
[1767626929271,11.43308625,134.77,134.72,8.14175939]
[1767626929664,11.43308625,134.77,134.73,8.14128324]
[1767626929665,3.82249214,134.77,134.73,8.14128324]
[1767626929974,0.18075838,134.76,134.73,7.42223902]
[1767626931279,0.18075838,134.76,134.72,7.42251799]
[1767626931582,0.67091188,134.75,134.69,18.56048961]
[1767626931770,0.18565991,134.74,134.7,7.42361424]
[1767626932270,0.19046391,134.72,134.68,17.34249214]
[1767626932756,0.19046391,134.72,134.69,7.42436562]
[1767626933253,4.01295605,134.72,134.69,7.42436562]
[1767626933459,3.82249214,134.72,134.7,0.71810147]
[1767626933659,3.82249214,134.73,134.7,0.71810147]
[1767626934878,11.24478768,134.73,134.69,0.71810147]
[1767626935076,3.82249214,134.72,134.69,0.71810147]
[1767626935262,3.82249214,134.7,134.67,0.71810147]
[1767626935463,3.82249214,134.68,134.64,0.71810147]
[1767626935657,3.82249214,134.67,134.64,0.71810147]
[1767626936980,11.24806559,134.67,134.64,0.71810147]
[1767626937281,3.82249214,134.67,134.64,0.71810147]
[1767626937781,11.2481159,134.67,134.64,0.71810147]
[1767626938169,3.82249214,134.65,134.62,0.71810147]
[1767626938373,3.76249214,134.65,134.62,0.71810147]
[1767626938757,3.82249214,134.64,134.6,0.71810147]
[1767626939184,39.50952069,134.67,134.61,0.71810147]
[1767626939185,3.82249214,134.66,134.61,0.71810147]
[1767626940458,3.82249214,134.65,134.61,0.71810147]
[1767626941080,20.94565999,134.67,134.62,8.10243814]
[1767626941290,24.76815213,134.67,134.63,0.6741214]
[1767626941502,0.72391917,134.75,134.67,0.6741214]
[1767626941664,3.95567484,134.74,134.69,0.6741214]
[1767626941859,3.82249214,134.73,134.69,0.6741214]
[1767626942173,4.54641131,134.73,134.68,3.82249214]
[1767626942372,0.08281288,134.68,134.55,0.2]
[1767626942569,3.82249214,134.6,134.56,7.43154693]
[1767626942769,0.62391917,134.65,134.56,7.43154693]
[1767626942973,0.62391917,134.65,134.58,3.82249214]
[1767626943171,3.82249214,134.66,134.61,7.42886858]
[1767626943369,3.82249214,134.65,134.61,7.42886858]
[1767626943568,7.42555877,134.67,134.61,7.42886858]
[1767626943987,18.55855221,134.71,134.63,3.82249214]
[1767626944161,18.65755221,134.71,134.65,0.6741214]
[1767626944365,3.82249214,134.69,134.65,0.6741214]
[1767626945284,3.82249214,134.69,134.61,26.00104003]
[1767626945285,3.82249214,134.68,134.63,0.6741214]
[1767626945482,11.24698169,134.69,134.64,0.6741214]
[1767626945988,3.82249214,134.68,134.64,0.6741214]
[1767626946163,3.82249214,134.67,134.62,8.10242424]
[1767626946376,3.82249214,134.66,134.62,0.6741214]
[1767626947194,11.24821535,134.67,134.62,0.6741214]
[1767626947489,0.61352524,134.68,134.63,0.6741214]
[1767626947490,3.82249214,134.68,134.63,0.6741214]
[1767626947906,11.24708655,134.69,134.63,4.49661354]
[1767626948400,11.24708655,134.69,134.64,0.6741214]
[1767626948607,7.42459441,134.69,134.64,0.6741214]
[1767626948900,9.87005381,134.69,134.64,0.6741214]
[1767626949102,2.4454594,134.69,134.64,0.6741214]
[1767626949272,9.87002688,134.69,134.64,0.6741214]
[1767626950091,18.65808936,134.71,134.65,0.6741214]
[1767626950092,2.4454594,134.7,134.65,0.6741214]
[1767626950290,2.4454594,134.7,134.66,0.6741214]
[1767626950596,2.5444594,134.71,134.66,0.6741214]
[1767626950893,9.86895501,134.71,134.66,0.6741214]
[1767626951476,2.4454594,134.71,134.67,0.6741214]
[1767626952779,8.04637712,134.73,134.67,0.6741214]
[1767626953084,2.4454594,134.71,134.67,0.6741214]
[1767626954576,7.42315096,134.72,134.67,0.6741214]
[1767626954769,2.4454594,134.71,134.67,0.6741214]
[1767626955488,9.86861036,134.72,134.68,0.6741214]
[1767626956111,2.5496561,134.7,134.65,0.6741214]
[1767626956276,2.4454594,134.69,134.65,0.6741214]
[1767626956900,7.42315096,134.72,134.67,0.6741214]
[1767626957398,2.4454594,134.71,134.67,0.6741214]
[1767626958195,2.4454594,134.71,134.67,8.0994726]
[1767626959006,7.42315096,134.72,134.68,0.6741214]
[1767626959180,0.099,134.73,134.68,0.6741214]
[1767626959181,12.03238493,134.74,134.69,0.6741214]
[1767626959381,14.47784433,134.74,134.69,0.6741214]
[1767626959692,2.4454594,134.73,134.69,0.6741214]
[1767626960399,2.4454594,134.73,134.7,0.6741214]
[1767626961404,18.55232001,134.76,134.72,0.6741214]
[1767626961405,2.4454594,134.76,134.72,0.6741214]
[1767626961592,7.41987947,134.78,134.72,0.6741214]
[1767626961794,2.4454594,134.76,134.72,0.6741214]
[1767626961997,2.4454594,134.78,134.73,0.6741214]
[1767626962387,2.4454594,134.78,134.74,8.09582245]
[1767626962594,6.71938065,134.79,134.75,0.6741214]
[1767626963812,0.71775,134.78,134.75,7.42095047]
[1767626965109,5.99546148,134.79,134.75,0.6741214]
[1767626967195,5.99546148,134.79,134.75,8.09521344]
[1767626968007,8.2363831,134.8,134.75,8.09521344]
[1767626968190,5.99546148,134.79,134.75,8.09521344]
[1767626970315,13.41445052,134.79,134.75,0.6741214]
[1767626970617,6.71327256,134.78,134.73,0.6741214]
[1767626970823,5.99546148,134.76,134.73,8.13597119]
[1767626971326,6.71654581,134.77,134.73,8.13597119]
[1767626972219,5.99546148,134.76,134.73,0.71385771]
[1767626972395,5.99546148,134.76,134.73,8.13596792]
[1767626972917,5.99546148,134.76,134.73,0.71385771]
[1767626974025,5.99546148,134.75,134.71,21.65720943]
[1767626974258,5.99546148,134.74,134.7,7.42367454]
[1767626974521,0.72107388,134.73,134.7,7.42390497]
[1767626974696,5.99546148,134.74,134.7,8.13776268]
[1767626975309,6.71654581,134.75,134.7,8.13776268]
[1767626976328,0.82108433,134.8,134.73,6.70931919]
[1767626976631,5.99546148,134.76,134.72,21.65650743]
[1767626976923,5.99546148,134.75,134.72,8.13650743]
[1767626977121,5.99546148,134.75,134.72,0.71385771]
[1767626977293,5.99546148,134.75,134.71,20.94328391]
[1767626977294,6.71602319,134.75,134.71,20.94328391]
[1767626977497,0.72107388,134.74,134.72,7.42274511]
[1767626977709,0.72107905,134.74,134.72,7.42274511]
[1767626978021,0.72107905,134.74,134.71,7.42317415]
[1767626978428,5.99546148,134.75,134.71,8.13703186]
[1767626978723,0.72108433,134.77,134.72,0.71385771]
[1767626979027,6.71654581,134.77,134.72,0.71385771]
[1767626980423,5.99546148,134.77,134.74,0.71385771]
[1767626980622,6.71601797,134.78,134.74,0.71385771]
[1767626981336,13.41465643,134.79,134.74,6.70931919]
[1767626981632,14.13521292,134.79,134.75,0.71385771]
[1767626982421,14.13521292,134.79,134.74,8.13534784]
[1767626982629,2.44213233,134.78,134.74,8.13534784]
[1767626983524,0.1,134.8,134.76,0.71385771]
[1767626983724,2.54213233,134.8,134.76,0.71385771]
[1767626984036,2.54213233,134.8,134.76,8.13442015]
[1767626984210,3.26268882,134.8,134.76,8.13442015]
[1767626986031,10.6811405,134.8,134.76,0.71385771]
[1767626986225,10.6811405,134.8,134.76,8.13442998]
[1767626986833,3.26268882,134.8,134.76,8.13442998]
[1767626987040,0.82055649,134.8,134.76,8.13442998]
[1767626987236,3.26268882,134.8,134.76,8.13442998]
[1767626987624,0.82055649,134.8,134.76,8.13442998]
[1767626987825,3.26268882,134.8,134.76,8.13442998]
[1767626988125,0.1,134.8,134.78,0.71385771]
[1767626988823,0.1,134.8,134.77,3.15599004]
[1767626989641,0.1,134.8,134.78,2.44213233]
[1767626989818,0.1,134.8,134.77,0.71385771]
[1767626990141,0.1,134.8,134.79,2.44213233]
[1767626990326,0.1,134.8,134.78,9.86115198]
[1767626990920,0.1,134.8,134.79,2.44213233]
[1767626991121,0.1,134.8,134.78,7.41901965]
[1767626991545,0.1,134.8,134.79,0.71385771]
[1767626993922,0.1,134.8,134.78,8.14036826]
[1767626995145,0.1,134.8,134.78,10.58250059]
[1767626995322,0.1,134.8,134.78,3.16348094]
[1767626995847,0.1,134.8,134.78,0.72134861]
[1767626996851,0.1,134.8,134.77,9.86192442]
[1767626997037,0.1,134.8,134.77,7.41979209]
[1767626997235,0.1,134.8,134.78,0.72134861]
[1767626998050,0.1,134.8,134.78,8.14078143]
[1767626998942,0.1,134.8,134.78,0.72134861]
[1767626999547,0.61736855,134.79,134.77,7.41980269]
[1767626999851,2.44213233,134.78,134.71,0.72134861]
[1767627000058,2.44213233,134.77,134.73,8.14334128]
[1767627000549,2.44213233,134.77,134.73,0.72134861]
[1767627000721,2.54113233,134.78,134.73,3.16348094]
[1767627001128,8.03619826,134.8,134.75,0.65282964]
[1767627001327,2.54527418,134.77,134.73,8.07499047]
[1767627001545,2.44213233,134.78,134.74,0.65282964]
[1767627002256,2.44213233,134.78,134.74,8.0744151]
[1767627002834,2.54113233,134.78,134.74,7.42158546]
[1767627003253,2.44213233,134.77,134.73,8.07482748]
[1767627004054,2.44213233,134.77,134.71,8.075892]
[1767627004055,2.44213233,134.75,134.71,8.075892]
[1767627004353,2.44213233,134.76,134.72,0.65282964]
[1767627005249,9.86214323,134.78,134.74,0.65282964]
[1767627005452,7.4200109,134.78,134.75,0.65282964]
[1767627005962,9.86214323,134.78,134.75,0.65282964]
[1767627006346,2.44213233,134.77,134.75,0.65282964]
[1767627006548,2.44213233,134.77,134.73,8.07495369]
[1767627006750,7.93319576,134.78,134.73,8.07495369]
[1767627006947,2.44213233,134.77,134.73,8.07495369]
[1767627007150,2.44213233,134.77,134.74,0.65282964]
[1767627008344,2.44213233,134.75,134.71,0.65282964]
[1767627008663,2.44213233,134.74,134.71,0.65282964]
[1767627008849,2.44213233,134.75,134.71,0.65282964]
[1767627009951,7.92992186,134.76,134.71,0.65282964]
[1767627009952,7.92992186,134.76,134.71,8.07618014]
[1767627010152,10.37205419,134.76,134.71,8.07618014]
[1767627010464,10.37205419,134.76,134.72,0.65282964]